bitfinex/quotes_ETHUSD_20250813
["timestamp","ask_amount","ask_price","bid_price","bid_amount"]
[1755089801162,0.1072,4674.9,4674.8,3.9099]
[1755089801554,0.1072,4674.9,4674.8,11.6979]
[1755089801757,0.1072,4674.9,4674.8,12.7362]
[1755089803168,0.1072,4674.9,4674.8,5.125]
[1755089803369,0.1072,4674.9,4674.8,8.597]
[1755089803854,0.1072,4674.9,4674.8,8.5978]
[1755089804256,0.1072,4674.9,4674.8,5.1258]
[1755089804468,0.1072,4674.9,4674.8,8.5968]
[1755089805795,0.1072,4674.9,4674.8,4.5111]
[1755089805978,0.1072,4674.9,4674.8,4.948]
[1755089806181,0.1072,4674.9,4674.8,5.4428]
[1755089807091,0.1072,4674.9,4674.8,3.9676]
[1755089807265,0.1072,4674.9,4674.8,5.4428]
[1755089808479,0.1072,4674.9,4674.8,0.0018]
[1755089808667,0.1072,4674.9,4674.8,3.4718]
[1755089809358,0.1072,4674.9,4674.8,4.5101]
[1755089809558,0.1072,4674.9,4674.8,0.0018]
[1755089809797,0.1072,4674.9,4674.8,3.4718]
[1755089810892,0.1072,4674.9,4674.8,3.4708]
[1755089811484,0.1072,4674.9,4674.8,11.2608]
[1755089811666,0.1072,4674.9,4674.8,7.7918]
[1755089811866,0.1072,4674.9,4674.8,11.2608]
[1755089813886,0.1072,4674.9,4674.8,12.2991]
[1755089814774,0.1072,4674.9,4674.8,11.2608]
[1755089814975,0.1072,4674.9,4674.8,8.5958]
[1755089815192,0.1072,4674.9,4674.8,8.5938]
[1755089816394,0.4348,4675.5,4674.8,3.4688]
[1755089816577,0.1072,4674.9,4674.8,3.4688]
[1755089818896,0.1072,4674.9,4674.8,3.4788]
[1755089820496,0.1072,4674.9,4674.8,0.0118]
[1755089820706,0.1072,4674.9,4674.8,3.4768]
[1755089820996,0.1072,4674.9,4674.8,4.5065]
[1755089821202,0.1072,4674.9,4674.8,3.4768]
[1755089821603,0.1072,4674.9,4674.8,11.2668]
[1755089821900,0.1072,4674.9,4674.8,7.8018]
[1755089822103,0.1072,4674.9,4674.8,11.2668]
[1755089822304,0.5731,4674.9,4674.8,7.8018]
[1755089822509,1.6271,4674.9,4674.8,11.2658]
[1755089822678,1.79001,4674.9,4674.8,11.2658]
[1755089823808,1.78921,4674.9,4674.8,11.2658]
[1755089823978,1.6263,4674.9,4674.8,11.2658]
[1755089824378,1.6263,4674.9,4674.8,8.6008]
[1755089824791,0.1064,4674.9,4674.8,5.1368]
[1755089824994,0.1064,4674.9,4674.8,8.6008]
[1755089825713,0.002,4675.2,4674.8,7.9424]
[1755089825888,0.002,4676.2,4674.9,4.7785244]
[1755089826088,0.1072,4676.0,4675.1,0.1072]
[1755089826306,0.1072,4676.0,4675.3,3.0]
[1755089826608,0.1072,4676.0,4675.4,1.48798854]
[1755089826921,0.1072,4676.0,4675.6,3.0]
[1755089827582,0.1072,4676.0,4675.7,1.4666]
[1755089827914,0.1072,4676.0,4675.7,1.0297]
[1755089828414,0.1072,4676.0,4675.8,1.48798671]
[1755089828613,0.1072,4676.0,4675.9,6.462]
[1755089830285,0.1072,4676.0,4675.9,6.461]
[1755089830811,0.1072,4676.0,4675.9,3.0]
[1755089831014,0.1072,4676.0,4675.9,6.461]
[1755089831410,0.1072,4676.0,4675.9,9.1268]
[1755089831613,0.1072,4676.0,4675.9,14.2518]
[1755089831802,0.1072,4676.0,4675.9,14.2508]
[1755089831990,1.6271,4676.0,4675.9,7.7908]
[1755089832316,1.79001,4676.0,4675.9,11.2508]
[1755089832814,2.34001,4676.0,4675.9,5.125]
[1755089833121,2.34001,4676.0,4675.9,3.46]
[1755089835430,0.1072,4676.0,4675.9,3.46]
[1755089836898,0.1072,4676.0,4675.9,3.4608]
[1755089837097,0.1072,4676.0,4675.9,4.9274]
[1755089837504,0.1072,4676.0,4675.9,4.4905]
[1755089839046,0.1072,4676.0,4675.9,7.4905]
[1755089839697,0.1072,4676.0,4675.9,6.4608]
[1755089839898,0.1092,4676.0,4675.9,6.4608]
[1755089840426,0.1092,4676.0,4675.9,8.28324]
[1755089840631,0.002,4676.0,4675.9,3.0008]
[1755089840932,0.002,4676.0,4675.9,7.4875]
[1755089841436,0.002,4676.0,4675.9,6.6955]
[1755089841598,0.002,4676.0,4675.9,15.2775]
[1755089841793,0.002,4676.0,4675.9,14.2478]
[1755089841994,0.002,4676.0,4675.9,12.2574]
[1755089842194,0.002,4676.0,4675.9,15.2775]
[1755089842396,0.002,4676.0,4675.9,11.5828]
[1755089842596,0.002,4676.0,4675.9,11.5818]
[1755089842820,0.002,4676.0,4675.9,28.45161127]
[1755089843145,0.002,4676.5,4676.0,3.61514121]
[1755089843432,0.002,4676.5,4676.2,3.0]
[1755089843798,0.002,4676.5,4676.3,1.4666]
[1755089844033,0.002,4676.5,4676.4,6.47738397]
[1755089844322,0.0012,4676.5,4676.4,7.9226]
[1755089848032,0.0012,4676.5,4676.4,4.4666]
[1755089848236,0.0012,4676.5,4676.4,7.9206]
[1755089848736,0.002,4677.5,4676.6,0.55]
[1755089848942,0.002,4677.5,4676.9,0.55]
[1755089849243,0.002,4677.5,4677.1,3.55]
[1755089849534,0.002,4677.5,4677.2,3.454]
[1755089849731,0.002,4677.5,4677.3,3.0]
[1755089850030,0.002,4677.5,4676.9,1.4666]
[1755089850233,0.002,4677.5,4677.1,3.0]
[1755089851015,0.002,4677.5,4677.0,3.59974]
[1755089851016,0.4438,4677.4,4677.2,3.453]
[1755089851220,0.4438,4677.4,4677.3,3.0]
[1755089851421,0.4438,4677.4,4677.3,10.787]
[1755089851943,1.4135,4677.4,4677.3,11.24]
[1755089852443,1.4135,4677.4,4677.3,11.576]
[1755089852808,1.5207,4677.4,4677.3,11.576]
[1755089853144,0.551,4677.4,4677.3,11.576]
[1755089853949,0.1072,4677.4,4677.3,11.576]
[1755089854322,0.002,4677.5,4677.3,3.0008]
[1755089854640,0.002,4677.5,4677.3,6.47417985]
[1755089854833,0.002,4677.5,4677.3,6.4528]
[1755089855039,0.002,4677.5,4677.4,0.02137939]
[1755089855236,0.002,4677.5,4677.3,6.4528]
[1755089857013,0.002,4677.5,4677.4,3.55]
[1755089857359,0.0012,4677.5,4677.4,5.7329206]
[1755089857516,0.0012,4677.5,4677.4,5.81874121]
[1755089858949,0.002,4678.0,4677.4,5.81874121]
[1755089859141,0.002,4678.0,4677.9,0.1072]
[1755089859342,0.002,4678.0,4677.9,7.12857711]
[1755089859542,0.002,4678.0,4677.9,8.1095]
[1755089859721,0.002,4678.0,4677.9,8.83773357]
[1755089860326,0.002,4678.0,4677.9,9.16234121]
[1755089860729,0.002,4678.0,4677.9,9.31812294]
[1755089861459,0.002,4678.0,4677.9,17.10312294]
[1755089862649,0.002,4678.0,4677.9,17.18848794]
[1755089863240,0.002,4678.0,4677.9,16.57334673]
[1755089864549,0.002,4678.0,4677.9,13.91034673]
[1755089864950,0.002,4678.0,4677.9,12.313365]
[1755089865150,0.002,4678.0,4677.9,7.191365]
[1755089865450,0.002,4678.0,4677.9,7.34791463]
[1755089865950,0.002,4678.0,4677.9,6.556]
[1755089867438,0.002,4678.0,4677.9,6.555]
[1755089868165,0.002,4678.0,4677.9,3.108]
[1755089868462,1.4155,4678.0,4677.9,3.4478]
[1755089869627,1.4155,4678.0,4677.9,6.4478]
[1755089869837,1.4147,4678.0,4677.9,6.4478]
[1755089871530,1.4147,4678.0,4677.9,14.2318]
[1755089874368,0.0012,4678.0,4677.9,11.5688]
[1755089874928,0.0012,4678.0,4677.9,6.4478]
[1755089875141,0.0012,4678.0,4677.9,6.555]
[1755089877746,0.445,4678.0,4677.9,3.108]
[1755089877952,0.445,4678.0,4677.9,6.552]
[1755089878146,1.4147,4678.0,4677.9,6.552]
[1755089878367,0.445,4678.0,4677.9,6.552]
[1755089879268,1.4147,4678.0,4677.9,6.552]
[1755089879475,0.4311,4678.0,4677.9,6.552]
[1755089879679,1.3567,4678.0,4677.9,6.4448]
[1755089880673,0.0012,4678.0,4677.9,6.4448]
[1755089881366,0.4311,4678.0,4677.9,6.4448]
[1755089881566,0.4311,4678.0,4677.9,14.2288]
[1755089881888,0.0012,4678.0,4677.9,14.336]
[1755089883647,1.3567,4678.0,4677.9,10.7848]
[1755089883990,1.3559,4678.0,4677.9,11.5638]
[1755089884278,1.3559,4678.0,4677.9,6.4428]
[1755089885175,0.4303,4678.0,4677.9,6.4428]
[1755089885376,0.0004,4678.0,4677.9,6.4428]
[1755089886277,0.4303,4678.0,4677.9,6.4428]
[1755089886782,1.3559,4678.0,4677.9,6.4428]
[1755089887180,0.4303,4678.0,4677.9,6.4428]
[1755089887495,0.0004,4678.0,4677.9,6.4428]
[1755089888166,0.4303,4678.0,4677.9,6.4428]
[1755089889087,0.0004,4678.0,4677.9,6.4428]
[1755089889487,0.0004,4678.0,4677.9,6.55]
[1755089889861,0.4303,4678.0,4677.9,3.108]
[1755089890063,1.3559,4678.0,4677.9,6.4408]
[1755089890561,0.0004,4678.0,4677.9,6.4408]
[1755089891387,0.0004,4678.0,4677.9,6.548]
[1755089891566,0.0004,4678.0,4677.9,14.332]
[1755089891986,0.0004,4678.0,4677.9,15.321]
[1755089894274,0.0004,4678.0,4677.9,14.332]
[1755089894878,0.0004,4678.0,4677.9,12.658]
[1755089895082,0.0004,4678.0,4677.9,8.5239]
[1755089895884,0.0016,4678.5,4677.9,8.5239]
[1755089896204,0.0016,4678.5,4678.4,0.1072]
[1755089896403,0.0016,4678.5,4678.4,6.5462]
[1755089896704,0.0016,4678.5,4678.4,6.546]
[1755089897074,0.0016,4678.5,4678.4,3.108]
[1755089897388,1.3571,4678.5,4678.4,6.546]
[1755089898680,1.3571,4678.5,4678.4,3.108]
[1755089898878,1.3571,4678.5,4678.4,6.546]
[1755089899880,1.3571,4678.5,4678.4,6.545]
[1755089900084,1.3571,4678.5,4678.4,0.0008]
[1755089900085,1.59341,4678.5,4678.4,0.0008]
[1755089900282,1.59341,4678.5,4678.4,3.4378]
[1755089901384,1.59341,4678.5,4678.4,6.1008]
[1755089901584,1.59341,4678.5,4678.4,7.7848]
[1755089902113,1.59341,4678.5,4678.4,11.2208]
[1755089902587,1.59341,4678.5,4678.4,7.7848]
[1755089902786,1.59341,4678.5,4678.4,11.2208]
[1755089905998,0.23791,4678.5,4678.4,11.2208]
[1755089906201,0.0016,4678.5,4678.4,11.2208]
[1755089906424,0.4315,4678.5,4678.4,11.2208]
[1755089906678,1.3571,4678.5,4678.4,11.2198]
[1755089906829,1.3571,4678.5,4678.4,5.1218]
[1755089907112,1.59341,4678.5,4678.4,8.5568]
[1755089908286,1.59261,4678.5,4678.4,5.1218]
[1755089908487,1.59261,4678.5,4678.4,8.5568]
[1755089909123,2.14261,4678.5,4678.4,5.1218]
[1755089909488,0.55,4678.4,4677.8,0.001]
[1755089909695,0.55,4678.2,4677.9,1.782]
[1755089909919,0.55,4678.0,4677.9,1.782]
[1755089910225,2.1251,4678.0,4677.8,0.001]
[1755089910427,0.0205887,4677.9,4677.8,0.001]
[1755089910634,2.0384887,4677.9,4677.8,0.001]
[1755089910836,2.31441497,4677.9,4677.8,0.001]
[1755089911307,2.31441497,4677.9,4677.8,3.435]
[1755089911507,2.31441497,4677.9,4677.8,8.557]
[1755089912727,1.76441497,4677.9,4677.8,8.557]
[1755089912938,1.87161497,4677.9,4677.8,8.557]
[1755089913233,1.87161497,4677.9,4677.8,5.123]
[1755089913422,2.42161497,4677.9,4677.8,8.557]
[1755089913839,2.42161497,4677.9,4677.8,8.5578]
[1755089916635,1.87161497,4677.9,4677.8,8.5578]
[1755089920639,0.87281497,4677.9,4677.8,8.5578]
[1755089920840,0.1072,4677.9,4677.8,8.5578]
[1755089923537,0.5763,4677.9,4677.8,8.5578]
[1755089923715,0.5763,4677.9,4677.8,5.1238]
[1755089924144,0.1072,4677.9,4677.8,8.5548]
[1755089924516,0.5763,4677.9,4677.8,8.5548]
[1755089924826,0.1072,4677.9,4677.8,8.5548]
[1755089926339,0.5763,4677.9,4677.8,8.5548]
[1755089926738,1.5751,4677.9,4677.8,8.5548]
[1755089927752,0.5763,4677.9,4677.8,8.5548]
[1755089928242,0.1072,4677.9,4677.8,8.5548]
[1755089929036,0.5763,4677.9,4677.8,8.5548]
[1755089929626,0.73381,4677.9,4677.8,8.5548]
[1755089929822,1.5751,4677.9,4677.8,5.1238]
[1755089930022,1.5751,4677.9,4677.8,8.5528]
[1755089933818,1.5743,4677.9,4677.8,8.5528]
[1755089934947,1.5743,4677.9,4677.8,5.1238]
[1755089935153,1.5743,4677.9,4677.8,8.5508]
[1755089936447,0.73293,4677.9,4677.7,2.663]
[1755089936699,0.73293,4677.9,4677.8,5.123]
[1755089936700,0.1064,4677.9,4677.8,5.123]
[1755089937223,0.5755,4677.9,4677.8,5.123]
[1755089937950,0.5755,4677.9,4677.8,8.549]
[1755089939050,0.1064,4677.9,4677.8,8.549]
[1755089939363,1.5743,4677.9,4677.8,8.548]
[1755089939548,1.73378887,4677.9,4677.8,8.548]
[1755089943471,0.26588887,4677.9,4677.8,8.548]
[1755089943673,0.1064,4677.9,4677.8,8.548]
[1755089943871,1.4689,4677.9,4677.8,8.5488]
[1755089945150,0.5482,4677.9,4677.8,8.5488]
[1755089945974,0.1056,4677.9,4677.8,5.123]
[1755089947075,0.5474,4677.9,4677.8,5.123]
[1755089947382,0.5474,4677.9,4677.8,8.546]
[1755089947550,0.69421,4677.9,4677.8,8.546]
[1755089950582,0.25241,4677.9,4677.8,8.546]
[1755089951172,0.69421,4677.9,4677.8,8.546]
[1755089952476,0.25241,4677.9,4677.8,8.546]
[1755089952680,0.1056,4677.9,4677.8,8.546]
[1755089954784,0.002,4678.4,4677.8,9.8984]
[1755089954951,0.1072,4677.9,4677.8,9.8984]
[1755089956586,0.1072,4677.9,4677.8,8.546]
[1755089956787,0.1072,4677.9,4677.8,5.123]
[1755089957084,0.1072,4677.9,4677.8,8.542]
[1755089960891,0.1072,4677.9,4677.8,4.7714]
[1755089961462,0.1072,4677.9,4677.8,12.5584]
[1755089963964,0.1072,4677.9,4677.8,9.8952]
[1755089964165,0.002,4678.4,4677.8,9.8952]
[1755089964364,0.1072,4678.3,4677.9,1.3524]
[1755089964604,0.1072,4678.3,4678.0,3.416]
[1755089964790,0.1072,4678.3,4678.1,3.416]
[1755089965133,0.1072,4678.3,4678.1,4.78977619]
[1755089965394,0.1072,4678.3,4678.2,1.3524]
[1755089965759,0.1072,4678.3,4678.2,1.82932]
[1755089965963,0.002,4678.4,4678.2,4.85069574]
[1755089966185,0.002,4678.4,4678.3,7.7674]
[1755089966562,0.002,4678.4,4678.3,7.8746]
[1755089968193,0.002,4678.7,4678.3,7.8746]
[1755089968194,0.002,4678.7,4678.4,3.55]
[1755089968402,0.002,4678.7,4678.6,3.0]
[1755089968574,0.002,4678.7,4678.6,3.1072]
[1755089968899,0.002,4678.7,4678.6,4.4596]
[1755089969277,0.002,4678.7,4678.6,4.4604]
[1755089969593,0.002,4678.7,4678.6,13.55190546]
[1755089969769,0.002,4678.7,4678.6,14.02882546]
[1755089971565,0.002,4678.7,4678.6,21.81382546]
[1755089973384,0.002,4678.7,4678.6,19.15082546]
[1755089975414,0.002,4678.7,4678.6,14.02882546]
[1755089978105,0.002,4678.7,4678.6,17.00092546]
[1755089978819,0.002,4678.7,4678.6,16.08542546]
[1755089981390,0.002,4678.7,4678.6,20.13062546]
[1755089981594,0.002,4678.7,4678.6,25.25062546]
[1755089982015,0.002,4678.7,4678.6,24.81372546]
[1755089982609,0.002,4678.7,4678.6,23.86742546]
[1755089982810,0.002,4678.7,4678.6,16.98150546]
[1755089983134,1.3749,4678.7,4678.6,14.1898]
[1755089984017,1.3741,4678.7,4678.6,14.1898]
[1755089984531,0.4534,4678.7,4678.6,8.1208]
[1755089984745,1.3741,4678.7,4678.6,11.5278]
[1755089985099,1.3741,4678.7,4678.6,8.1208]
[1755089985325,1.3741,4678.7,4678.6,6.4068]
[1755089985713,1.3741,4678.7,4678.6,3.0008]
[1755089985916,1.62283,4678.7,4678.6,6.4068]
[1755089986106,1.3741,4678.7,4678.6,6.4068]
[1755089987029,0.0012,4678.7,4678.6,6.4068]
[1755089987239,1.3741,4678.7,4678.6,6.4068]
[1755089987610,0.0012,4678.7,4678.6,3.0008]
[1755089987807,1.3741,4678.7,4678.6,3.4058]
[1755089988006,1.62283,4678.7,4678.6,3.4058]
[1755089988423,1.73003,4678.7,4678.6,3.4058]
[1755089990615,1.73003,4678.7,4678.6,0.0008]
[1755089990831,1.73003,4678.7,4678.6,3.4058]
[1755089991538,1.73003,4678.7,4678.6,11.1898]
[1755089995021,1.73003,4678.7,4678.6,11.1878]
[1755089995912,1.72923,4678.7,4678.6,11.1868]
[1755089996836,1.72923,4678.7,4678.6,7.7848]
[1755089997040,1.72923,4678.7,4678.6,11.1868]
[1755089998210,0.1076,4678.7,4678.6,20.27830546]
[1755089998410,0.1076,4678.7,4678.6,21.22460546]
[1755089998411,0.0004,4678.7,4678.6,21.22460546]
[1755089998606,0.0004,4678.7,4678.6,11.1858]
[1755089998842,0.1076,4678.7,4678.6,11.1868]
[1755089999546,0.1076,4678.7,4678.6,12.4984]
[1755090000037,0.1076,4678.7,4678.6,12.0615]
[1755090000242,0.1076,4678.7,4678.6,8.5238]
[1755090000449,0.0004,4678.7,4678.6,8.5238]
[1755090001020,0.0004,4678.7,4678.6,3.4028]
[1755090001427,0.0004,4678.7,4678.6,11.1868]
[1755090003447,0.002,4679.0,4678.6,21.69710546]
[1755090003645,0.002,4679.0,4678.7,1.62937583]
[1755090003851,0.002,4679.0,4678.9,0.1072]
[1755090004027,0.002,4679.0,4678.9,0.12857254]
[1755090004229,0.002,4679.0,4678.9,2.04521259]
[1755090004457,0.002,4679.0,4678.9,2.02384005]
[1755090004751,0.002,4679.0,4678.9,1.4188]
[1755090005252,0.002,4679.4,4679.0,0.55]
[1755090005455,0.002,4679.4,4679.3,9.64150546]
[1755090005657,0.002,4679.4,4679.3,9.74870546]
[1755090005844,0.002,4679.4,4679.3,10.51030546]
[1755090006032,0.002,4679.4,4679.3,13.47240546]
[1755090007253,0.002,4679.4,4679.3,13.51030546]
[1755090007457,0.002,4679.4,4679.3,16.47240546]
[1755090008157,0.0012,4679.4,4679.3,16.90930546]
[1755090009438,0.4727,4679.4,4679.3,0.1072]
[1755090009636,1.4435,4679.4,4679.3,1.654]
[1755090010029,1.4435,4679.4,4678.7,0.0008]
[1755090010242,1.4435,4679.4,4678.9,3.0]
[1755090010460,0.4715,4679.3,4678.9,3.0]
[1755090010956,0.1084,4679.4,4678.9,3.0]
[1755090011534,0.1084,4679.4,4679.3,5.12]
[1755090011731,0.1084,4679.4,4679.3,8.517]
[1755090012053,0.5799,4679.4,4679.3,8.517]
[1755090012755,0.1084,4679.4,4679.3,8.517]
[1755090013260,0.5799,4679.4,4679.3,8.517]
[1755090013969,0.5799,4679.4,4679.3,8.5178]
[1755090015366,0.1084,4679.4,4679.3,8.5178]
[1755090015800,0.0012,4679.4,4679.3,8.5178]
[1755090017100,1.3363,4679.4,4679.3,0.0008]
[1755090017600,1.4435,4679.4,4679.3,3.3958]
[1755090018388,0.1084,4679.4,4679.3,3.3958]
[1755090020096,0.5799,4679.4,4679.3,3.3958]
[1755090020394,1.4427,4679.4,4679.3,3.3958]
[1755090020693,0.5791,4679.4,4679.3,3.3958]
[1755090021182,1.4427,4679.4,4679.3,3.3958]
[1755090021494,0.5791,4679.4,4679.3,11.1778]
[1755090023967,0.1076,4679.4,4679.3,11.1778]
[1755090024565,0.5791,4679.4,4679.3,11.1778]
[1755090025603,1.4427,4679.4,4679.3,11.1778]
[1755090026294,1.4427,4679.4,4679.3,11.1748]
[1755090028202,1.4427,4679.4,4679.3,8.5128]
[1755090028597,0.5791,4679.4,4679.3,8.5128]
[1755090029101,0.5791,4679.4,4679.3,3.3918]
[1755090030100,0.1076,4679.4,4679.3,3.3918]
[1755090031497,0.1076,4679.4,4679.3,11.1738]
[1755090033002,0.1068,4679.4,4679.3,11.1738]
[1755090035909,0.1068,4679.4,4679.3,8.5128]
[1755090036414,0.1088,4679.4,4679.3,8.5108]
[1755090036621,1.4778,4679.4,4679.3,3.3898]
[1755090036787,1.62598,4679.4,4679.3,3.3898]
[1755090038883,1.62598,4679.4,4679.3,0.0018]
[1755090039280,2.1965687,4679.4,4679.3,0.0018]
[1755090039916,2.17598,4679.4,4679.3,3.3888]
[1755090040692,2.17598,4679.4,4678.8,0.001]
[1755090040693,0.55,4679.3,4678.8,0.001]
[1755090040986,0.6572,4678.9,4678.8,0.001]
[1755090041509,0.6572,4678.9,4678.8,8.509]
[1755090041510,2.0262,4678.9,4678.8,8.509]
[1755090042688,2.0262,4678.9,4678.8,5.122]
[1755090043217,2.0262,4678.9,4678.8,8.508]
[1755090043916,2.0262,4678.9,4678.8,8.5088]
[1755090044117,2.2560998,4678.9,4678.8,5.121]
[1755090044304,0.55,4678.8,4678.6,0.001]
[1755090044510,1.919,4678.8,4678.7,8.507]
[1755090046515,1.369,4678.8,4678.7,8.507]
[1755090046719,2.08960998,4678.8,4678.7,8.507]
[1755090048590,2.08960998,4678.8,4678.7,5.121]
[1755090048787,0.1072,4678.9,4678.7,5.121]
[1755090049690,0.1072,4678.9,4678.8,3.385]
[1755090049887,0.1072,4678.9,4678.7,5.121]
[1755090050604,0.1072,4678.9,4678.6,0.001]
[1755090050808,1.9395887,4678.8,4678.6,0.001]
[1755090051006,0.20467887,4678.7,4678.6,0.001]
[1755090051324,2.12367887,4678.7,4678.6,3.385]
[1755090051626,0.55,4678.6,4677.9,2.663]
[1755090051793,0.55,4678.4,4678.2,5.122]
[1755090051992,0.55,4678.4,4677.3,0.001]
[1755090051993,0.55,4678.4,4678.3,5.122]
[1755090052222,0.1072,4678.4,4677.3,0.001]
[1755090052425,0.6572,4677.6,4677.3,0.001]
[1755090052925,2.0262,4677.6,4677.3,0.001]
[1755090053131,2.22882,4677.6,4677.3,0.001]
[1755090053338,2.22882,4677.6,4677.5,3.384]
[1755090053532,0.55,4677.5,4677.3,0.001]
[1755090053731,0.0205887,4677.4,4677.3,0.001]
[1755090054032,1.4857887,4677.4,4677.3,3.3848]
[1755090054243,2.19894087,4677.4,4676.1,1.3395]
[1755090054398,0.55,4677.2,4676.1,1.3395]
[1755090054908,0.0205887,4677.3,4676.0,0.001]
[1755090055112,0.561,4677.2,4676.0,0.001]
[1755090055335,1.4762,4677.2,4676.0,0.001]
[1755090055514,1.68087887,4677.2,4676.0,0.001]
[1755090055697,1.68087887,4677.2,4677.1,3.384]
[1755090055904,0.76567887,4677.2,4677.1,3.384]
[1755090056532,0.31187887,4677.2,4677.1,3.384]
[1755090058431,1.31567887,4677.2,4677.1,3.384]
[1755090059137,0.86187887,4677.2,4677.1,3.384]
[1755090059344,0.1072,4677.2,4677.1,3.384]
[1755090059904,0.1072,4677.2,4677.1,3.383]
[1755090061038,0.1072,4677.2,4677.1,4.3104]
[1755090061239,0.1072,4677.2,4677.1,0.001]
[1755090061441,1.9404,4677.2,4677.1,11.169]
[1755090061606,2.13444,4677.2,4677.1,7.788]
[1755090061810,0.55,4677.1,4676.6,0.001]
[1755090062039,1.8332,4677.1,4677.0,8.506]
[1755090062238,1.8332,4677.1,4677.0,5.123]
[1755090062545,3.25579455,4677.1,4677.0,5.123]
[1755090062739,3.25579455,4677.1,4676.6,0.001]
[1755090062910,0.1072,4676.7,4676.6,0.001]
[1755090063543,1.9404,4676.7,4676.6,0.001]
[1755090063711,1.9404,4676.7,4676.6,3.382]
[1755090063911,0.55,4676.6,4676.1,0.001]
[1755090064123,0.6572,4676.2,4676.1,0.001]
[1755090064512,0.1072,4676.2,4676.1,0.001]
[1755090064716,0.1072,4676.2,4676.1,1.3892]
[1755090065618,0.1072,4676.2,4676.1,4.7702]
[1755090065839,0.1072,4676.2,4676.1,5.24742]
[1755090066819,0.1072,4676.2,4676.1,5.24642]
[1755090071452,0.1072,4676.2,4676.1,13.03442]
[1755090072245,0.1072,4676.6,4676.1,13.32168422]
[1755090072564,0.1072,4676.6,4676.5,9.09150546]
[1755090072722,0.1072,4676.6,4676.5,9.64256]
[1755090073249,0.4303,4678.6,4676.5,11.03076]
[1755090073448,0.1072,4676.9,4676.6,4.78758305]
[1755090073648,0.002,4679.5,4678.4,5.124]
[1755090073841,0.002,4679.5,4678.5,3.378]
[1755090074217,0.1072,4678.6,4678.5,3.378]
[1755090074422,0.1064,4678.6,4678.5,3.378]
[1755090074639,0.1064,4678.6,4677.6,0.1072]
[1755090074839,0.002,4679.5,4677.6,0.1072]
[1755090074840,0.1072,4678.3,4677.7,5.109607]
[1755090075044,0.1072,4678.3,4677.8,4.3882]
[1755090075442,0.1072,4678.3,4677.8,3.0]
[1755090075645,0.1072,4678.3,4677.9,1.3882]
[1755090076148,0.1072,4678.3,4677.8,3.0]
[1755090076359,0.1072,4678.3,4677.6,0.1072]
[1755090076548,0.4323,4678.8,4677.7,3.377]
[1755090076549,1.2832,4678.2,4677.7,3.377]
[1755090076763,0.4303,4678.5,4677.8,1.542]
[1755090076936,0.4303,4678.5,4677.9,3.376]
[1755090077129,0.12852,4678.4,4677.9,3.376]
[1755090077328,0.552,4678.8,4677.9,4.3034]
[1755090077559,0.552,4678.8,4677.9,4.7642]
[1755090078741,0.552,4678.8,4677.9,3.376]
[1755090078937,0.002,4678.8,4677.9,3.376]
[1755090079243,0.55,4678.6,4678.0,3.376]
[1755090079440,0.55,4678.4,4678.0,3.376]
[1755090079644,1.2832,4678.3,4678.0,3.376]
[1755090079832,0.8529,4678.3,4678.0,3.376]
[1755090080033,0.4303,4678.2,4678.0,3.376]
[1755090080247,0.4303,4678.1,4678.0,3.376]
[1755090080565,0.201872,4678.1,4678.0,3.376]
[1755090081062,0.4303,4678.1,4678.0,3.376]
[1755090081557,0.4303,4678.1,4678.0,11.162]
[1755090082962,1.8332,4678.1,4678.0,5.123]
[1755090083264,0.55,4678.0,4677.9,0.0008]
[1755090083465,2.07172,4678.0,4677.9,8.4988]
[1755090083756,2.07172,4678.0,4677.8,2.664]
[1755090083958,0.55,4677.8,4677.0,0.001]
[1755090084166,0.0205887,4677.7,4677.0,0.001]
[1755090084530,0.4303,4677.6,4677.0,0.001]
[1755090084734,0.18537887,4677.5,4677.1,3.374]
[1755090084973,0.4303,4677.4,4677.1,3.374]
[1755090085335,0.9803,4677.3,4677.0,0.001]
[1755090085657,0.0205887,4677.2,4677.1,3.374]
[1755090085838,1.8332,4677.2,4677.1,3.374]
[1755090086158,2.09005789,4677.2,4677.1,3.374]
[1755090086362,1.23715789,4677.2,4677.1,3.374]
[1755090086562,0.6572,4677.2,4677.1,3.374]
[1755090087161,1.9404,4677.2,4677.1,3.374]
[1755090088467,0.55,4677.1,4677.0,0.001]
[1755090088676,0.55,4677.1,4677.0,3.375]
[1755090088874,0.1072,4677.2,4677.0,3.375]
[1755090089036,0.55,4677.1,4677.0,3.375]
[1755090089237,0.65875,4677.1,4677.0,3.375]
[1755090090967,0.10875,4677.1,4677.0,3.375]
[1755090091160,0.1072,4677.2,4677.0,4.6955]
[1755090091357,0.1072,4677.2,4677.1,1.3205]
[1755090091579,0.1072,4677.2,4677.1,9.12988077]
[1755090091775,0.1072,4677.2,4677.1,9.1085]
[1755090092353,0.1072,4677.2,4677.1,7.788]
[1755090092764,0.1072,4677.2,4677.1,11.161]